fUST/lending_fUST_20260524
["ID","MTS","AMOUNT","RATE_DAILY","PERIOD"]
[422895960,1779587446000,-500.0,0.00011084,2]
[422895962,1779587446000,-500.0,0.00011084,2]
[422895972,1779587446000,-500.0,0.00011084,2]
[422895975,1779587446000,-555.73899463,0.00011084,2]
[422895981,1779587446000,-500.0,0.00011084,2]
[422895958,1779587446000,-500.0,0.00011084,2]
[422895977,1779587446000,-500.70013333,0.00011084,2]
[422895976,1779587446000,-500.56074949,0.00011084,2]
[422895993,1779587446000,-500.0,0.00011084,2]
[422895992,1779587446000,-500.0,0.00011084,2]
[422895990,1779587446000,-500.0,0.00011084,2]
[422895988,1779587446000,-500.0,0.00011084,2]
[422895986,1779587446000,-500.0,0.00011084,2]
[422895994,1779587446000,-500.42240124,0.00011084,2]
[422895985,1779587446000,-500.0,0.00011084,2]
[422895979,1779587446000,-500.0,0.00011084,2]
[422895987,1779587446000,-500.0,0.00011084,2]
[422895984,1779587446000,-500.41806484,0.00011084,2]
[422895978,1779587446000,-500.16159871,0.00011084,2]
[422895974,1779587446000,-500.0,0.00011084,2]
[422895983,1779587446000,-500.0,0.00011084,2]
[422896078,1779587447000,-501.24437322,0.00011358,2]
[422896073,1779587447000,-422.55051057,0.00011358,2]
[422896079,1779587447000,-633.53714738,0.00011358,2]
[422896080,1779587447000,-500.39662094,0.00011358,2]
[422896077,1779587447000,-500.58861756,0.00011358,2]
[422896069,1779587447000,-500.35829912,0.00011358,2]
[422896072,1779587447000,-500.0,0.00011358,2]
[422896081,1779587447000,-602.291259,0.00011358,2]
[422896066,1779587447000,-501.52471874,0.00011358,2]
[422896063,1779587447000,-500.0,0.00011358,2]
[422896062,1779587447000,-500.0,0.00011358,2]
[422896068,1779587447000,-500.43791427,0.00011358,2]
[422896070,1779587447000,-500.6296141,0.00011358,2]
[422896092,1779587447000,-502.13171101,0.00011358,2]
[422896075,1779587447000,-500.48772698,0.00011358,2]
[422896074,1779587447000,-500.0,0.00011358,2]
[422896076,1779587447000,-500.6788582,0.00011358,2]
[422896082,1779587447000,-500.95523948,0.00011358,2]
[422896084,1779587447000,-501.6978577,0.00011358,2]
[422896085,1779587447000,-560.01853265,0.00011358,2]
[422896090,1779587447000,-500.0,0.00011358,2]
[422896086,1779587447000,-506.91219537,0.00011358,2]
[422896083,1779587447000,-632.07319881,0.00011358,2]
[422896088,1779587447000,-500.50294655,0.00011358,2]
[422896087,1779587447000,-500.0,0.00011358,2]
[422896089,1779587447000,-500.48858157,0.00011358,2]
[422896091,1779587447000,-500.78688688,0.00011358,2]
[422896061,1779587447000,-455.27756191,0.00011358,2]
[422896071,1779587447000,-501.62557746,0.00011358,2]
[422896064,1779587447000,-500.52806157,0.00011358,2]
[422896043,1779587447000,-501.01977851,0.00011358,2]
[422896065,1779587447000,-501.04016821,0.00011358,2]
[422896093,1779587447000,-501.20971316,0.00011358,2]
[422896034,1779587447000,-500.0,0.00011109,2]
[422896033,1779587447000,-500.0,0.00011109,2]
[422896032,1779587447000,-500.0,0.00011109,2]
[422896035,1779587447000,-500.0,0.00011111,2]
[422896036,1779587447000,-587.0,0.00011114,2]
[422896038,1779587447000,-195.372626,0.00011131,2]
[422896041,1779587447000,-501.12539615,0.00011358,2]
[422896037,1779587447000,-517.0,0.00011114,2]
[422896039,1779587447000,-172.89122572,0.00011228,2]
[422896040,1779587447000,-864.0,0.00011344,2]
[422896054,1779587447000,-501.34670974,0.00011358,2]
[422896046,1779587447000,-494.72097139,0.00011358,2]
[422896067,1779587447000,-500.71185224,0.00011358,2]
[422896042,1779587447000,-206.68005739,0.00011358,2]
[422896047,1779587447000,-500.0,0.00011358,2]
[422896045,1779587447000,-193.93385214,0.00011358,2]
[422896049,1779587447000,-237.5794323,0.00011358,2]
[422896044,1779587447000,-500.90615019,0.00011358,2]
[422896048,1779587447000,-152.46540606,0.00011358,2]
[422896053,1779587447000,-500.0,0.00011358,2]
[422896051,1779587447000,-500.87886045,0.00011358,2]
[422896050,1779587447000,-338.27197255,0.00011358,2]
[422896055,1779587447000,-257.82081426,0.00011358,2]
[422896056,1779587447000,-500.0,0.00011358,2]
[422896059,1779587447000,-500.0,0.00011358,2]
[422896058,1779587447000,-500.0,0.00011358,2]
[422896057,1779587447000,-233.63192407,0.00011358,2]
[422896052,1779587447000,-505.7811461,0.00011358,2]
[422896095,1779587447000,-500.50362066,0.00011358,2]
[422896060,1779587447000,-500.0,0.00011358,2]
[422896106,1779587447000,-500.0,0.00011358,2]
[422896125,1779587447000,-500.0,0.0001138,2]
[422896129,1779587447000,-500.0,0.00011383,2]
[422896128,1779587447000,-627.96,0.00011383,2]
[422896130,1779587447000,-500.0,0.00011383,2]
[422896127,1779587447000,-500.0,0.00011383,2]
[422896126,1779587447000,-626.64,0.0001138,2]
[422896146,1779587447000,-500.0,0.00011632,2]
[422896145,1779587447000,-500.0,0.00011632,2]
[422896136,1779587447000,-500.0,0.00011383,2]
[422896144,1779587447000,-500.0,0.00011632,2]
[422896147,1779587447000,-500.0,0.00011632,2]
[422896135,1779587447000,-500.0,0.00011383,2]
[422896143,1779587447000,-186.078867,0.00011621,2]
[422896122,1779587447000,-500.0,0.0001138,2]
[422896141,1779587447000,-293.925306,0.00011576,2]
[422896137,1779587447000,-500.0,0.00011383,2]
[422896139,1779587447000,-229.83432848,0.00011417,2]
[422896140,1779587447000,-160.0,0.00011576,2]
[422896142,1779587447000,-427.850612,0.00011576,2]
[422896150,1779587447000,-500.0,0.00011632,2]
[422896151,1779587447000,-495.18972685,0.00011632,2]
[422896148,1779587447000,-576.28040126,0.00011632,2]
[422896152,1779587447000,-500.0,0.00011632,2]
[422896153,1779587447000,-500.0,0.00011632,2]
[422896155,1779587447000,-500.0,0.00011632,2]
[422896156,1779587447000,-500.0,0.00011632,2]
[422896154,1779587447000,-500.0,0.00011632,2]
[422896103,1779587447000,-500.0,0.00011358,2]
[422896138,1779587447000,-500.0,0.00011385,2]
[422896157,1779587447000,-500.0,0.00011632,2]
[422896149,1779587447000,-500.0,0.00011632,2]
[422896123,1779587447000,-2243.59,0.0001138,2]
[422896124,1779587447000,-500.0,0.0001138,2]
[422896105,1779587447000,-500.0,0.00011358,2]
[422896096,1779587447000,-544.82082156,0.00011358,2]
[422896094,1779587447000,-500.82428311,0.00011358,2]
[422896097,1779587447000,-500.69538837,0.00011358,2]
[422896100,1779587447000,-500.46196351,0.00011358,2]
[422896099,1779587447000,-500.0,0.00011358,2]
[422896098,1779587447000,-500.64959543,0.00011358,2]
[422896102,1779587447000,-500.0,0.00011358,2]
[422896101,1779587447000,-500.0,0.00011358,2]
[422896118,1779587447000,-500.0,0.00011359,2]
[422896108,1779587447000,-500.0,0.00011358,2]
[422896119,1779587447000,-500.0,0.00011379,2]
[422896117,1779587447000,-500.0,0.00011359,2]
[422896104,1779587447000,-500.0,0.00011358,2]
[422896110,1779587447000,-500.61702215,0.00011358,2]
[422896107,1779587447000,-500.0,0.00011358,2]
[422896132,1779587447000,-500.0,0.00011383,2]
[422896134,1779587447000,-500.0,0.00011383,2]
[422896121,1779587447000,-500.0,0.0001138,2]
[422896131,1779587447000,-500.0,0.00011383,2]
[422896114,1779587447000,-500.0,0.00011358,2]
[422896113,1779587447000,-500.0,0.00011358,2]
[422896133,1779587447000,-584.54388219,0.00011383,2]
[422896115,1779587447000,-500.0,0.00011358,2]
[422896116,1779587447000,-502.81715795,0.00011358,2]
[422896112,1779587447000,-268.79199172,0.00011358,2]
[422896111,1779587447000,-500.57324484,0.00011358,2]
[422896120,1779587447000,-305.92841663,0.0001138,2]
[422896109,1779587447000,-500.0,0.00011358,2]
[422896194,1779587448000,-160.0,0.00011756,2]
[422896187,1779587448000,-500.0,0.00011657,2]
[422896195,1779587448000,-1481.105866,0.00011756,2]
[422896188,1779587448000,-500.0,0.00011657,2]
[422896186,1779587448000,-500.0,0.00011657,2]
[422896191,1779587448000,-500.0,0.00011657,2]
[422896190,1779587448000,-195.29872889,0.00011657,2]
[422896193,1779587448000,-236.679363,0.00011667,2]
[422896185,1779587448000,-500.0,0.00011657,2]
[422896192,1779587448000,-500.0,0.00011659,2]
[422896200,1779587448000,-500.0,0.00011906,2]
[422896197,1779587448000,-500.0,0.00011906,2]
[422896206,1779587448000,-500.0,0.00011906,2]
[422896196,1779587448000,-2802.211733,0.00011756,2]
[422896201,1779587448000,-500.0,0.00011906,2]
[422896198,1779587448000,-500.0,0.00011906,2]
[422896203,1779587448000,-471.59771833,0.00011906,2]
[422896199,1779587448000,-500.0,0.00011906,2]
[422896204,1779587448000,-500.0,0.00011906,2]
[422896180,1779587448000,-500.0,0.00011654,2]
[422896202,1779587448000,-500.0,0.00011906,2]
[422896189,1779587448000,-500.0,0.00011657,2]
[422896181,1779587448000,-626.64,0.00011654,2]
[422896166,1779587448000,-500.0,0.00011632,2]
[422896178,1779587448000,-2243.59,0.00011654,2]
[422896205,1779587448000,-500.0,0.00011906,2]
[422896158,1779587448000,-501.3733992,0.00011632,2]
[422896159,1779587448000,-500.70339716,0.00011632,2]
[422896160,1779587448000,-500.0,0.00011632,2]
[422896161,1779587448000,-500.0,0.00011632,2]
[422896163,1779587448000,-500.0,0.00011632,2]
[422896162,1779587448000,-500.60998343,0.00011632,2]
[422896164,1779587448000,-500.0,0.00011632,2]
[422896167,1779587448000,-500.58372287,0.00011632,2]
[422896168,1779587448000,-500.0,0.00011632,2]
[422896179,1779587448000,-500.0,0.00011654,2]
[422896169,1779587448000,-160.0,0.00011633,2]
[422896172,1779587448000,-766.63845589,0.00011633,2]
[422896170,1779587448000,-500.0,0.00011633,2]
[422896171,1779587448000,-500.0,0.00011633,2]
[422896174,1779587448000,-160.0,0.00011633,2]
[422896176,1779587448000,-500.0,0.00011654,2]
[422896183,1779587448000,-627.96,0.00011657,2]
[422896182,1779587448000,-500.0,0.00011657,2]
[422896175,1779587448000,-500.0,0.00011653,2]
[422896184,1779587448000,-410.65639699,0.00011657,2]
[422896177,1779587448000,-500.0,0.00011654,2]
[422896173,1779587448000,-161.73153808,0.00011633,2]
[422896210,1779587448000,-500.82998926,0.00011906,2]
[422896165,1779587448000,-500.45877396,0.00011632,2]
[422896209,1779587448000,-501.14951036,0.00011906,2]
[422896237,1779587448000,-151.15,0.00012,2]
[422896239,1779587448000,-500.0,0.0001204,2]
[422896238,1779587448000,-151.5,0.0001204,2]
[422896236,1779587448000,-410.778463,0.00011981,2]
[422896246,1779587448000,-1041.0,0.0001204,2]
[422896241,1779587448000,-500.0,0.0001204,2]
[422896242,1779587448000,-223.94888712,0.0001204,2]
[422896243,1779587448000,-1041.0,0.0001204,2]
[422896244,1779587448000,-1041.0,0.0001204,2]
[422896245,1779587448000,-1041.0,0.0001204,2]
[422896240,1779587448000,-155.12836519,0.0001204,2]
[422896248,1779587448000,-1041.0,0.0001204,2]
[422896247,1779587448000,-1041.0,0.0001204,2]
[422896249,1779587448000,-1041.0,0.0001204,2]
[422896253,1779587448000,-1041.0,0.0001204,2]
[422896250,1779587448000,-1041.0,0.0001204,2]
[422896251,1779587448000,-1041.0,0.0001204,2]
[422896255,1779587448000,-1041.0,0.0001204,2]
[422896256,1779587448000,-1041.0,0.0001204,2]
[422896254,1779587448000,-1041.0,0.0001204,2]
[422896252,1779587448000,-1041.0,0.0001204,2]
[422896207,1779587448000,-500.0,0.00011906,2]
[422896258,1779587448000,-1041.0,0.0001204,2]
[422896235,1779587448000,-285.389231,0.00011981,2]
[422896257,1779587448000,-1041.0,0.0001204,2]
[422896231,1779587448000,-500.0,0.00011931,2]
[422896208,1779587448000,-500.0,0.00011906,2]
[422896232,1779587448000,-500.0,0.00011933,2]
[422896213,1779587448000,-500.52798863,0.00011906,2]
[422896211,1779587448000,-500.82202906,0.00011906,2]
[422896215,1779587448000,-500.0,0.00011907,2]
[422896214,1779587448000,-500.68250767,0.00011906,2]
[422896212,1779587448000,-500.49655153,0.00011906,2]
[422896218,1779587448000,-500.0,0.00011928,2]
[422896217,1779587448000,-500.0,0.00011927,2]
[422896220,1779587448000,-2243.59,0.00011928,2]
[422896219,1779587448000,-500.0,0.00011928,2]
[422896216,1779587448000,-500.0,0.00011907,2]
[422896234,1779587448000,-160.0,0.00011981,2]
[422896222,1779587448000,-500.0,0.00011928,2]
[422896224,1779587448000,-500.0,0.00011931,2]
[422896223,1779587448000,-626.64,0.00011928,2]
[422896225,1779587448000,-627.96,0.00011931,2]
[422896227,1779587448000,-500.0,0.00011931,2]
[422896226,1779587448000,-500.0,0.00011931,2]
[422896233,1779587448000,-172.89122572,0.0001194,2]
[422896230,1779587448000,-500.0,0.00011931,2]
[422896229,1779587448000,-187.97763447,0.00011931,2]
[422896228,1779587448000,-157.15214837,0.00011931,2]
[422896221,1779587448000,-527.72,0.00011928,2]
[422896297,1779587449000,-626.64,0.00012202,2]
[422896291,1779587449000,-500.0,0.00012181,2]
[422896307,1779587449000,-180.91998,0.00012334,2]
[422896308,1779587449000,-160.0,0.00012412,2]
[422896306,1779587449000,-1139.312205,0.00012236,2]
[422896298,1779587449000,-500.0,0.00012205,2]
[422896296,1779587449000,-500.0,0.00012202,2]
[422896294,1779587449000,-500.0,0.00012202,2]
[422896289,1779587449000,-501.42053852,0.0001218,2]
[422896292,1779587449000,-500.0,0.00012201,2]
[422896299,1779587449000,-627.96,0.00012205,2]
[422896293,1779587449000,-500.0,0.00012202,2]
[422896300,1779587449000,-500.0,0.00012205,2]
[422896317,1779587449000,-500.0,0.00012454,2]
[422896304,1779587449000,-500.0,0.00012207,2]
[422896301,1779587449000,-500.0,0.00012205,2]
[422896303,1779587449000,-500.0,0.00012205,2]
[422896302,1779587449000,-500.0,0.00012205,2]
[422896309,1779587449000,-1071.675527,0.00012412,2]
[422896313,1779587449000,-500.0,0.00012454,2]
[422896311,1779587449000,-500.0,0.00012454,2]
[422896312,1779587449000,-500.0,0.00012454,2]
[422896316,1779587449000,-500.0,0.00012454,2]
[422896310,1779587449000,-1983.351054,0.00012412,2]
[422896314,1779587449000,-500.0,0.00012454,2]
[422896288,1779587449000,-500.0,0.0001218,2]
[422896305,1779587449000,-823.0,0.00012225,2]
[422896287,1779587449000,-500.0,0.0001218,2]
[422896266,1779587449000,-1054.61032704,0.0001204,2]
[422896286,1779587449000,-500.0,0.0001218,2]
[422896259,1779587449000,-1041.0,0.0001204,2]
[422896261,1779587449000,-1041.0,0.0001204,2]
[422896262,1779587449000,-1041.0,0.0001204,2]
[422896264,1779587449000,-1041.0,0.0001204,2]
[422896260,1779587449000,-1041.0,0.0001204,2]
[422896315,1779587449000,-500.0,0.00012454,2]
[422896271,1779587449000,-199.01697,0.00012088,2]
[422896263,1779587449000,-1041.0,0.0001204,2]
[422896267,1779587449000,-339.144584,0.00012048,2]
[422896268,1779587449000,-449.94234208,0.0001205,2]
[422896270,1779587449000,-160.0,0.00012088,2]
[422896269,1779587449000,-1477.6391756,0.00012053,2]
[422896265,1779587449000,-1041.0,0.0001204,2]
[422896290,1779587449000,-500.0,0.00012181,2]
[422896273,1779587449000,-297.831207,0.00012095,2]
[422896282,1779587449000,-624.59848876,0.0001218,2]
[422896283,1779587449000,-500.0,0.0001218,2]
[422896274,1779587449000,-3921.7891187,0.00012095,2]
[422896275,1779587449000,-322.6166472,0.00012095,2]
[422896277,1779587449000,-587.989931,0.00012148,2]
[422896276,1779587449000,-160.0,0.00012148,2]
[422896280,1779587449000,-500.0,0.0001218,2]
[422896281,1779587449000,-340.21818499,0.0001218,2]
[422896279,1779587449000,-530.16674308,0.0001218,2]
[422896278,1779587449000,-1015.979863,0.00012148,2]
[422896284,1779587449000,-500.0,0.0001218,2]
[422896285,1779587449000,-500.0,0.0001218,2]
[422896295,1779587449000,-2243.59,0.00012202,2]
[422896272,1779587449000,-238.03394,0.00012088,2]
[422896319,1779587449000,-500.0,0.00012475,2]
[422896330,1779587449000,-500.0,0.00012479,2]
[422896318,1779587449000,-219.530178,0.0001247,2]
[422896350,1779587449000,-160.0,0.0001275,2]
[422896349,1779587449000,-626.64,0.0001275,2]
[422896356,1779587449000,-500.0,0.00012753,2]
[422896355,1779587449000,-475.4898427,0.00012753,2]
[422896360,1779587449000,-471.19393413,0.00013002,2]
[422896361,1779587449000,-500.0,0.00013002,2]
[422896362,1779587449000,-500.0,0.00013002,2]
[422896363,1779587449000,-500.0,0.00013002,2]
[422896364,1779587449000,-500.0,0.00013002,2]
[422896359,1779587449000,-364.579905,0.00012956,2]
[422896357,1779587449000,-500.0,0.00012755,2]
[422896358,1779587449000,-1236.548685,0.00012919,2]
[422896366,1779587449000,-500.0,0.00013023,2]
[422896365,1779587449000,-500.0,0.00013002,2]
[422896368,1779587449000,-286.44,0.00013024,2]
[422896367,1779587449000,-500.0,0.00013024,2]
[422896370,1779587449000,-626.64,0.00013024,2]
[422896320,1779587449000,-500.0,0.00012476,2]
[422896371,1779587449000,-500.0,0.00013027,2]
[422896373,1779587449000,-500.0,0.00013027,2]
[422896376,1779587449000,-151.15,0.000132,2]
[422896375,1779587449000,-151.0,0.000131,2]
[422896378,1779587449000,-537.6845,0.00013238,2]
[422896374,1779587449000,-500.0,0.00013029,2]
[422896377,1779587449000,-162.59928907,0.00013238,2]
[422896369,1779587449000,-2243.59,0.00013024,2]
[422896379,1779587449000,-278.264409,0.00013271,2]
[422896346,1779587449000,-500.0,0.0001275,2]
[422896347,1779587449000,-2243.59,0.0001275,2]
[422896372,1779587449000,-627.96,0.00013027,2]
[422896351,1779587449000,-241.162487,0.0001275,2]
[422896348,1779587449000,-539.73523302,0.0001275,2]
[422896322,1779587449000,-2243.59,0.00012476,2]
[422896321,1779587449000,-500.0,0.00012476,2]
[422896331,1779587449000,-500.0,0.00012479,2]
[422896323,1779587449000,-500.0,0.00012476,2]
[422896324,1779587449000,-626.64,0.00012476,2]
[422896329,1779587449000,-354.24515356,0.00012479,2]
[422896326,1779587449000,-500.0,0.00012479,2]
[422896328,1779587449000,-321.80121138,0.00012479,2]
[422896325,1779587449000,-1000.0,0.00012478,2]
[422896332,1779587449000,-500.0,0.00012481,2]
[422896334,1779587449000,-229.634965,0.00012581,2]
[422896333,1779587449000,-195.85437272,0.00012578,21]
[422896327,1779587449000,-627.96,0.00012479,2]
[422896342,1779587449000,-156.34300896,0.00012728,2]
[422896344,1779587449000,-500.0,0.00012749,2]
[422896339,1779587449000,-500.0,0.00012728,2]
[422896354,1779587449000,-627.96,0.00012753,2]
[422896353,1779587449000,-500.0,0.00012753,2]
[422896345,1779587449000,-500.0,0.0001275,2]
[422896337,1779587449000,-500.0,0.00012728,2]
[422896352,1779587449000,-322.324975,0.0001275,2]
[422896338,1779587449000,-500.0,0.00012728,2]
[422896336,1779587449000,-678.449921,0.00012644,2]
[422896343,1779587449000,-500.0,0.00012728,2]
[422896341,1779587449000,-500.0,0.00012728,2]
[422896335,1779587449000,-500.48695236,0.00012596,2]
[422896340,1779587449000,-500.0,0.00012728,2]
[422896398,1779587450000,-500.0,0.0001355,2]
[422896408,1779587450000,-179.92802879,0.00013699,2]
[422896397,1779587450000,-233.84704073,0.0001355,2]
[422896404,1779587450000,-627.96,0.00013575,2]
[422896405,1779587450000,-500.0,0.00013575,2]
[422896406,1779587450000,-263.797052,0.00013679,2]
[422896407,1779587450000,-500.0,0.00013694,2]
[422896419,1779587450000,-244.0,0.00013726,2]
[422896413,1779587450000,-495.89283919,0.00013699,2]
[422896409,1779587450000,-670.385155,0.00013699,2]
[422896414,1779587450000,-151.0,0.000137,2]
[422896417,1779587450000,-161.398088,0.0001372,2]
[422896420,1779587450000,-558.34276163,0.00013786,2]
[422896418,1779587450000,-1000.0,0.00013726,2]
[422896412,1779587450000,-247.9464196,0.00013699,2]
[422896399,1779587450000,-518.99342314,0.00013571,2]
[422896411,1779587450000,-1000.0,0.00013699,2]
[422896396,1779587450000,-500.0,0.0001355,2]
[422896383,1779587450000,-526.79025578,0.00013276,2]
[422896402,1779587450000,-626.64,0.00013572,2]
[422896381,1779587450000,-500.0,0.00013276,2]
[422896380,1779587450000,-280.15903919,0.00013276,2]
[422896391,1779587450000,-500.0,0.00013301,2]
[422896382,1779587450000,-500.0,0.00013276,2]
[422896393,1779587450000,-151.0,0.000134,2]
[422896392,1779587450000,-196.4263355,0.00013303,2]
[422896394,1779587450000,-151.0,0.000134,2]
[422896389,1779587450000,-500.0,0.00013301,2]
[422896384,1779587450000,-500.0,0.00013276,2]
[422896388,1779587450000,-626.64,0.00013298,2]
[422896387,1779587450000,-2243.59,0.00013298,2]
[422896385,1779587450000,-500.0,0.00013297,2]
[422896390,1779587450000,-627.96,0.00013301,2]
[422896386,1779587450000,-500.0,0.00013298,2]
[422896395,1779587450000,-610.0,0.00013448,2]
[422896400,1779587450000,-500.0,0.00013572,2]
[422896403,1779587450000,-500.0,0.00013575,2]
[422896401,1779587450000,-2243.59,0.00013572,2]
[422896415,1779587450000,-151.0,0.000137,2]
[422896410,1779587450000,-220.9061349,0.00013699,2]
[422896422,1779587450000,-412.691139,0.00013789,2]
[422896443,1779587450000,-1496.98346381,0.000139,2]
[422896445,1779587450000,-115015.23682274,0.00014,2]
[422896444,1779587450000,-3368.21279357,0.000139,2]
[422896450,1779587450000,-42.13412578,9.465e-05,2]
[422896451,1779587450000,-2333.6059,9.739e-05,2]
[422896452,1779587450000,-1059.64684935,0.00010013,2]
[422896447,1779587450000,-42.82251533,9.465e-05,2]
[422896446,1779587450000,-500.31311914,9.186e-05,2]
[422896449,1779587450000,-1001.79209983,9.465e-05,2]
[422896448,1779587450000,-1246.85715906,9.465e-05,2]
[422896454,1779587450000,-2333.6059,0.00010287,2]
[422896456,1779587450000,-1822.1563628,0.00010561,2]
[422896455,1779587450000,-511.4495372,0.00010561,2]
[422896457,1779587450000,-7017.60253363,0.00014,2]
[422896458,1779587450000,-9384.44407561,0.00014,2]
[422896453,1779587450000,-1273.95905065,0.00010013,2]
[422896459,1779587450000,-957.42174828,0.00014,2]
[422896441,1779587450000,-6519.71625935,0.000139,2]
[422896437,1779587450000,-724.41291771,0.000139,2]
[422896416,1779587450000,-210.651837,0.0001372,2]
[422896439,1779587450000,-2897.65167082,0.000139,2]
[422896442,1779587450000,-8874.05824189,0.000139,2]
[422896432,1779587450000,-626.64,0.00013846,2]
[422896431,1779587450000,-2243.59,0.00013846,2]
[422896433,1779587450000,-500.0,0.00013849,2]
[422896423,1779587450000,-665.382278,0.00013789,2]
[422896421,1779587450000,-160.0,0.00013789,2]
[422896425,1779587450000,-2205.667,0.00013807,2]
[422896426,1779587450000,-648.021,0.00013807,2]
[422896424,1779587450000,-276.09,0.00013807,2]
[422896430,1779587450000,-519.21942747,0.00013846,2]
[422896429,1779587450000,-500.0,0.00013824,2]
[422896427,1779587450000,-1415.316,0.00013807,2]
[422896435,1779587450000,-500.0,0.00013849,2]
[422896434,1779587450000,-627.96,0.00013849,2]
[422896440,1779587450000,-4527.58073566,0.000139,2]
[422896436,1779587450000,-181.10322943,0.000139,2]
[422896438,1779587450000,-1629.92906484,0.000139,2]
[422896428,1779587450000,-500.0,0.00013824,2]
[422896460,1779587451000,-17.96210178,0.00010835,2]
[422896462,1779587451000,-2289.77730562,0.00010835,2]
[422896461,1779587451000,-25.8664926,0.00010835,2]
[422896464,1779587451000,-13627.8679127,0.00014,2]
[422896465,1779587451000,-459.0765286,0.00014,2]
[422896463,1779587451000,-2333.6059,0.00011109,2]
[422896532,1779588631000,-313.53775896,8.787e-05,2]
[422896522,1779588631000,-4108.08572923,8.563e-05,2]
[422896530,1779588631000,-891.91427077,8.563e-05,2]
[422896535,1779588631000,-500.0,9.188e-05,2]
[422896542,1779588631000,-393.03958581,9.728e-05,2]
[422896540,1779588631000,-300.0,9.727e-05,2]
[422896538,1779588631000,-177.30812817,9.462e-05,2]
[422896539,1779588631000,-247.36540912,9.465e-05,2]
[422896537,1779588631000,-500.0,9.191e-05,2]
[422896541,1779588631000,-500.0,9.728e-05,2]
[422896582,1779588638000,-500.0,0.00010278,2]
[422896583,1779588638000,-500.0,0.0001055,2]
[422896572,1779588638000,-600.0,0.00010126,2]
[422896581,1779588638000,-500.0,0.00010278,2]
[422896574,1779588638000,-500.0,0.00010276,2]
[422896584,1779588638000,-560.89,0.0001055,2]
[422896577,1779588638000,-500.0,0.00010276,2]
[422896578,1779588638000,-500.0,0.00010278,2]
[422896586,1779588638000,-500.0,0.00010552,2]
[422896587,1779588638000,-500.0,0.00010552,2]
[422896589,1779588638000,-500.0,0.00010552,2]
[422896588,1779588638000,-508.90140203,0.00010552,2]
[422896591,1779588638000,-500.0,0.00010824,2]
[422896579,1779588638000,-246.07191148,0.00010278,2]
[422896576,1779588638000,-560.89,0.00010276,2]
[422896585,1779588638000,-500.0,0.0001055,2]
[422896557,1779588638000,-500.0,9.73e-05,2]
[422896580,1779588638000,-500.0,0.00010278,2]
[422896556,1779588638000,-500.0,9.73e-05,2]
[422896593,1779588638000,-500.0,0.00010824,2]
[422896554,1779588638000,-167.85041419,9.728e-05,2]
[422896555,1779588638000,-500.0,9.728e-05,2]
[422896558,1779588638000,-500.0,9.73e-05,2]
[422896559,1779588638000,-500.0,9.73e-05,2]
[422896563,1779588638000,-560.89,0.00010002,2]
[422896570,1779588638000,-500.0,0.00010004,2]
[422896562,1779588638000,-500.0,0.00010002,2]
[422896565,1779588638000,-381.50959275,0.00010002,2]
[422896561,1779588638000,-193.631596,9.927e-05,2]
[422896564,1779588638000,-118.49040725,0.00010002,2]
[422896566,1779588638000,-500.0,0.00010004,2]
[422896560,1779588638000,-500.0,9.73e-05,2]
[422896568,1779588638000,-500.0,0.00010004,2]
[422896569,1779588638000,-500.0,0.00010004,2]
[422896567,1779588638000,-500.0,0.00010004,2]